fUSD/lending_fUSD_20260430
["ID","MTS","AMOUNT","RATE_DAILY","PERIOD"]
[421393250,1777552243000,-33193.50312019,0.000103,2]
[421393251,1777552243000,-925.03709536,0.000103,2]
[421393253,1777552243000,-4541.51549796,0.000103,2]
[421393254,1777552243000,-36572.36268271,0.000103,2]
[421393255,1777552243000,-700.6027735,0.000103,2]
[421393252,1777552243000,-1911.16944807,0.000103,2]
[421393270,1777552246000,-4199.70410253,0.000103,2]
[421393284,1777552279000,-477.81502748,9.908e-05,2]
[421393285,1777552281000,-500.0,9.908e-05,2]
[421393286,1777552282000,-1155.0,9.908e-05,2]
[421393287,1777552301000,-10000.01,9.908e-05,2]
[421393288,1777552302000,624.98430607,0.0003013,120]
[421393289,1777552315000,6049.98387119,0.0003013,120]
[421393291,1777552388000,149806.41,0.00030137,120]
[421393290,1777552388000,4533.658486,7.945e-05,2]
[421393293,1777553053000,413.311175,0.00029596,120]
[421393294,1777553211000,-1007.96361798,9.71e-05,2]
[421393298,1777553432000,-845.855,9.71e-05,2]
[421393296,1777553432000,-250.0,9.71e-05,2]
[421393295,1777553432000,-1095.81494852,9.71e-05,2]
[421393297,1777553432000,-179.983,9.71e-05,2]
[421393299,1777553432000,-300.0,9.807e-05,2]
[421393304,1777553432000,-1545.5564862,9.808e-05,2]
[421393301,1777553432000,-39045.25505658,9.808e-05,2]
[421393302,1777553432000,-47575.44861431,9.808e-05,2]
[421393303,1777553432000,-3229.88370083,9.808e-05,2]
[421393305,1777553432000,-2438.84688241,9.808e-05,2]
[421393300,1777553432000,-1200.0,9.807e-05,2]
[421393317,1777553438000,-213.45353483,9.907e-05,2]
[421393319,1777553438000,-606.85697576,9.907e-05,2]
[421393315,1777553438000,-1155.0,9.905e-05,2]
[421393314,1777553438000,-299.61839068,9.905e-05,2]
[421393318,1777553438000,-500.0,9.907e-05,2]
[421393313,1777553438000,-120262.11245967,9.808e-05,2]
[421393321,1777553438000,-182.9032863,9.907e-05,2]
[421393320,1777553438000,-42.18760342,9.907e-05,2]
[421393322,1777553438000,-155.31043647,9.907e-05,2]
[421393323,1777553438000,-0.12799546,9.907e-05,2]
[421393324,1777553438000,-149.87200454,9.907e-05,2]
[421393325,1777553438000,-612.87799546,9.908e-05,2]
[421393316,1777553438000,-300.0,9.906e-05,2]
[421393332,1777553441000,-3549.4941997,9.908e-05,2]
[421393333,1777553441000,-8107.34694089,9.908e-05,2]
[421393334,1777553441000,-414783.10598635,9.908e-05,2]
[421393335,1777553441000,-3167.34564539,9.908e-05,2]
[421393358,1777553443000,-150.0,0.000108,2]
[421393362,1777553443000,-150.0,0.000108,2]
[421393364,1777553443000,-150.0,0.000108,2]
[421393366,1777553443000,-150.0,0.0001086,2]
[421393368,1777553443000,-255.0,0.00010898,2]
[421393365,1777553443000,-150.0,0.000108,2]
[421393376,1777553443000,-150.0,0.00010989,2]
[421393375,1777553443000,-150.0,0.0001098,2]
[421393370,1777553443000,-150.0,0.00010926,2]
[421393371,1777553443000,-150.0,0.00010933,2]
[421393361,1777553443000,-150.0,0.000108,2]
[421393372,1777553443000,-150.0,0.0001095,2]
[421393369,1777553443000,-150.0,0.0001092,2]
[421393367,1777553443000,-150.0,0.00010863,2]
[421393360,1777553443000,-261.26925773,0.000108,2]
[421393351,1777553443000,-262.15,0.00010357,2]
[421393357,1777553443000,-150.0,0.000108,2]
[421393356,1777553443000,-150.0,0.000108,2]
[421393355,1777553443000,-1201.0,0.00010788,2]
[421393354,1777553443000,-250.0,0.00010681,2]
[421393352,1777553443000,-1078.42509831,0.00010399,3]
[421393353,1777553443000,-250.0,0.00010681,2]
[421393345,1777553443000,-500.0,9.908e-05,2]
[421393343,1777553443000,-873.27238682,9.908e-05,2]
[421393350,1777553443000,-216.00555089,0.00010299,2]
[421393373,1777553443000,-166.66,0.00010959,2]
[421393348,1777553443000,-275.95169109,0.00010168,2]
[421393347,1777553443000,-273.85732401,0.0001,2]
[421393349,1777553443000,-397.85702545,0.00010299,2]
[421393346,1777553443000,-278.0,9.908e-05,2]
[421393359,1777553443000,-150.0,0.000108,2]
[421393374,1777553443000,-150.0,0.00010971,2]
[421393344,1777553443000,-119374.65274539,9.908e-05,2]
[421393380,1777553443000,-166.66,0.00011088,2]
[421393397,1777553443000,-150.0,0.0001128,2]
[421393398,1777553443000,-150.0,0.00011305,2]
[421393396,1777553443000,-150.0,0.0001125,2]
[421393400,1777553443000,-150.0,0.00011333,2]
[421393399,1777553443000,-150.0,0.00011314,2]
[421393403,1777553443000,-166.66,0.00011347,2]
[421393394,1777553443000,-150.0,0.0001122,2]
[421393410,1777553443000,-150.0,0.0001146,2]
[421393406,1777553443000,-150.0,0.000114,2]
[421393408,1777553443000,-150.0,0.000114,2]
[421393404,1777553443000,-150.0,0.00011368,2]
[421393405,1777553443000,-150.0,0.000114,2]
[421393409,1777553443000,-150.0,0.00011432,2]
[421393378,1777553443000,-150.0,0.00011053,2]
[421393407,1777553443000,-150.0,0.000114,2]
[421393395,1777553443000,-150.0,0.00011242,2]
[421393363,1777553443000,-150.0,0.000108,2]
[421393392,1777553443000,-150.0,0.000112,2]
[421393393,1777553443000,-166.66,0.00011218,2]
[421393379,1777553443000,-150.0,0.00011067,2]
[421393381,1777553443000,-29677.02482476,0.00011099,2]
[421393377,1777553443000,-150.0,0.0001104,2]
[421393384,1777553443000,-150.0,0.000111,2]
[421393383,1777553443000,-1773.97505152,0.00011099,2]
[421393387,1777553443000,-1773.97505152,0.00011102,2]
[421393388,1777553443000,-150.0,0.00011116,2]
[421393385,1777553443000,-150.0,0.000111,2]
[421393386,1777553443000,-150.0,0.000111,2]
[421393389,1777553443000,-150.0,0.00011143,2]
[421393401,1777553443000,-150.0,0.0001134,2]
[421393391,1777553443000,-150.0,0.00011179,2]
[421393390,1777553443000,-150.0,0.0001116,2]
[421393382,1777553443000,-1773.97505155,0.00011099,2]
[421393417,1777553444000,-150.0,0.00011558,2]
[421393422,1777553444000,-150.0,0.0001164,2]
[421393425,1777553444000,-150.0,0.000117,2]
[421393428,1777553444000,-150.0,0.00011733,2]
[421393418,1777553444000,-150.0,0.0001158,2]
[421393411,1777553444000,-150.0,0.00011467,2]
[421393427,1777553444000,-150.0,0.000117,2]
[421393414,1777553444000,-150.0,0.00011495,2]
[421393415,1777553444000,-150.0,0.0001152,2]
[421393413,1777553444000,-150.0,0.00011486,2]
[421393416,1777553444000,-150.0,0.0001155,2]
[421393421,1777553444000,-150.0,0.00011621,2]
[421393412,1777553444000,-166.66,0.00011477,2]
[421393426,1777553444000,-150.0,0.000117,2]
[421393420,1777553444000,-166.66,0.00011606,2]
[421393441,1777553444000,-111.99595755,0.0001176,2]
[421393432,1777553444000,-4765.59774412,0.0001176,2]
[421393435,1777553444000,-2087.41062688,0.0001176,2]
[421393431,1777553444000,-150.0,0.0001176,2]
[421393440,1777553444000,-22.56063661,0.0001176,2]
[421393429,1777553444000,-150.0,0.00011747,2]
[421393419,1777553444000,-150.0,0.000116,2]
[421393438,1777553444000,-1008.48432124,0.0001176,2]
[421393437,1777553444000,-206.655588,0.0001176,2]
[421393430,1777553444000,-1773.97505152,0.00011749,2]
[421393424,1777553444000,-150.0,0.00011684,2]
[421393439,1777553444000,-675.53055876,0.0001176,2]
[421393423,1777553444000,-150.0,0.00011657,2]
[421393453,1777553446000,-150.0,0.00011874,2]
[421393452,1777553446000,-150.0,0.00011867,2]
[421393450,1777553446000,-150.0,0.00011829,2]
[421393446,1777553446000,-150.0,0.00011811,2]
[421393443,1777553446000,-2024.140888,0.0001176,2]
[421393448,1777553446000,-3500.22306851,0.00011812,2]
[421393447,1777553446000,-26176.80175623,0.00011812,2]
[421393449,1777553446000,-150.0,0.0001182,2]
[421393444,1777553446000,-2164.303759,0.0001176,2]
[421393445,1777553446000,-3991.955403,0.0001176,2]
[421393451,1777553446000,-150.0,0.0001185,2]
[421393454,1777553446000,-150.0,0.0001188,2]
[421393462,1777553446000,-343.0,0.00011987,2]
[421393455,1777553446000,-354.45606255,0.000119,3]
[421393458,1777553446000,-5000.0,0.000119,2]
[421393461,1777553446000,-150.0,0.0001194,2]
[421393460,1777553446000,-150.0,0.00011937,2]
[421393459,1777553446000,-769.8616407,0.000119,2]
[421393463,1777553446000,-270.15266774,0.0001199,2]
[421393464,1777553446000,-270.15266774,0.0001199,2]
[421393466,1777553446000,-439.13846193,0.00012,2]
[421393465,1777553446000,-138244.21609834,0.00012,2]
[421393442,1777553446000,-80.73232684,0.0001176,2]
[421393456,1777553446000,-1315.01395409,0.000119,2]
[421393457,1777553446000,-1462.03400864,0.000119,2]
[421393468,1777553447000,-481.64251522,0.00012,2]
[421393467,1777553447000,-19783.70442159,0.00012,2]
[421393469,1777553827000,10000.0,0.00030136,120]
[421393470,1777553889000,10000.0,0.00030136,120]
[421393471,1777553898000,10000.0,0.00030136,120]
[421393472,1777553907000,10000.0,0.00030136,120]
[421393473,1777553916000,10000.0,0.00030136,120]
[421393474,1777553926000,10000.0,0.00030136,120]
[421393475,1777553934000,10000.0,0.00030136,120]
[421393476,1777553952000,10000.0,0.00030136,120]
[421393485,1777554346000,-250.0,9.329e-05,2]
[421393487,1777554562000,-5206.512756,9.698e-05,2]
[421393486,1777554562000,-500.0,9.61e-05,2]
[421393491,1777554631000,-445.16237278,9.698e-05,2]
[421393493,1777554631000,-938.55,9.698e-05,2]
[421393494,1777554631000,-1982.90913914,9.698e-05,2]
[421393495,1777554631000,-48.69154687,9.698e-05,2]
[421393492,1777554631000,-1378.17418521,9.698e-05,2]
[421393496,1777554631000,-300.0,9.706e-05,2]
[421393499,1777554631000,-13572.3609302,9.707e-05,2]
[421393498,1777554631000,-1000.0,9.707e-05,2]
[421393497,1777554631000,-1200.0,9.706e-05,2]
[421393501,1777554637000,-380.52932165,9.707e-05,2]
[421393502,1777554637000,-3815.25,9.707e-05,2]
[421393504,1777554637000,-2539.59274757,9.707e-05,2]
[421393503,1777554637000,-993.34152341,9.707e-05,2]
[421393506,1777554637000,-764.38184483,9.707e-05,2]
[421393505,1777554637000,-825.26934686,9.707e-05,2]
[421393508,1777554637000,-582.57802036,9.707e-05,2]
[421393507,1777554637000,-7906.75379404,9.707e-05,2]
[421393702,1777554639000,-2852.19657638,9.707e-05,2]
[421393701,1777554639000,-119.0,9.707e-05,2]
[421393704,1777554640000,-799.41080678,9.707e-05,2]
[421393703,1777554640000,-4926.23470969,9.707e-05,2]
[421393711,1777554642000,-2287.75089346,9.707e-05,2]
[421393713,1777554643000,-5642.70196642,9.707e-05,2]
[421393714,1777554643000,-1909.66153725,9.707e-05,2]
[421393712,1777554643000,-1189.45646289,9.707e-05,2]
[421393717,1777554646000,-1065.32812545,9.707e-05,2]
[421393744,1777554646000,-814.49976958,9.807e-05,2]
[421393749,1777554646000,-814.49976958,9.807e-05,2]
[421393747,1777554646000,-814.49976958,9.807e-05,2]
[421393745,1777554646000,-814.49976958,9.807e-05,2]
[421393741,1777554646000,-814.49976958,9.807e-05,2]
[421393743,1777554646000,-814.49976958,9.807e-05,2]
[421393742,1777554646000,-814.49976958,9.807e-05,2]
[421393740,1777554646000,-814.49976958,9.807e-05,2]
[421393737,1777554646000,-814.49976958,9.807e-05,2]
[421393739,1777554646000,-814.49976958,9.807e-05,2]
[421393738,1777554646000,-814.49976958,9.807e-05,2]
[421393733,1777554646000,-814.49976958,9.807e-05,2]
[421393734,1777554646000,-814.49976958,9.807e-05,2]
[421393732,1777554646000,-814.49976958,9.807e-05,2]
[421393736,1777554646000,-814.49976958,9.807e-05,2]
[421393735,1777554646000,-814.49976958,9.807e-05,2]
[421393730,1777554646000,-814.49976958,9.807e-05,2]
[421393731,1777554646000,-814.49976958,9.807e-05,2]
[421393728,1777554646000,-814.49976958,9.807e-05,2]
[421393725,1777554646000,-244.365,9.807e-05,2]
[421393729,1777554646000,-814.49976958,9.807e-05,2]
[421393727,1777554646000,-814.49976958,9.807e-05,2]
[421393726,1777554646000,-500.0,9.807e-05,2]
[421393723,1777554646000,-2500.0,9.708e-05,2]
[421393724,1777554646000,-3539.95138471,9.806e-05,2]
[421393722,1777554646000,-59457.401,9.708e-05,2]
[421393720,1777554646000,-224.57524946,9.707e-05,2]
[421393719,1777554646000,-57478.37019278,9.707e-05,2]
[421393718,1777554646000,-444.58999998,9.707e-05,2]
[421393750,1777554646000,-814.49976958,9.807e-05,2]
[421393746,1777554646000,-814.49976958,9.807e-05,2]
[421393721,1777554646000,-3910.4138,9.708e-05,2]
[421393755,1777554646000,-814.49976958,9.807e-05,2]
[421393748,1777554646000,-814.49976958,9.807e-05,2]
[421393782,1777554646000,-801.240471,9.807e-05,2]
[421393780,1777554646000,-801.240471,9.807e-05,2]
[421393781,1777554646000,-801.240471,9.807e-05,2]
[421393778,1777554646000,-801.240471,9.807e-05,2]
[421393776,1777554646000,-801.240471,9.807e-05,2]
[421393774,1777554646000,-814.49976958,9.807e-05,2]
[421393777,1777554646000,-801.240471,9.807e-05,2]
[421393773,1777554646000,-814.49976958,9.807e-05,2]
[421393779,1777554646000,-801.240471,9.807e-05,2]
[421393775,1777554646000,-801.240471,9.807e-05,2]
[421393771,1777554646000,-814.49976958,9.807e-05,2]
[421393770,1777554646000,-814.49976958,9.807e-05,2]
[421393769,1777554646000,-814.49976958,9.807e-05,2]
[421393766,1777554646000,-814.49976958,9.807e-05,2]
[421393772,1777554646000,-814.49976958,9.807e-05,2]
[421393765,1777554646000,-814.49976958,9.807e-05,2]
[421393764,1777554646000,-814.49976958,9.807e-05,2]
[421393756,1777554646000,-814.49976958,9.807e-05,2]
[421393753,1777554646000,-814.49976958,9.807e-05,2]
[421393754,1777554646000,-814.49976958,9.807e-05,2]
[421393752,1777554646000,-814.49976958,9.807e-05,2]
[421393751,1777554646000,-814.49976958,9.807e-05,2]
[421393758,1777554646000,-814.49976958,9.807e-05,2]
[421393757,1777554646000,-814.49976958,9.807e-05,2]
[421393762,1777554646000,-814.49976958,9.807e-05,2]
[421393763,1777554646000,-814.49976958,9.807e-05,2]
[421393767,1777554646000,-814.49976958,9.807e-05,2]
[421393759,1777554646000,-814.49976958,9.807e-05,2]
[421393761,1777554646000,-814.49976958,9.807e-05,2]
[421393760,1777554646000,-814.49976958,9.807e-05,2]
[421393768,1777554646000,-814.49976958,9.807e-05,2]
[421393803,1777554647000,-801.240471,9.807e-05,2]
[421393806,1777554647000,-801.240471,9.807e-05,2]
[421393809,1777554647000,-500.0,9.807e-05,2]
[421393811,1777554647000,-500.0,9.807e-05,2]
[421393810,1777554647000,-500.0,9.807e-05,2]
[421393812,1777554647000,-801.24047102,9.807e-05,2]
[421393805,1777554647000,-801.240471,9.807e-05,2]
[421393815,1777554647000,-801.24047102,9.807e-05,2]
[421393824,1777554647000,-1846.966,9.807e-05,2]
[421393813,1777554647000,-801.24047102,9.807e-05,2]
[421393816,1777554647000,-801.24047102,9.807e-05,2]
[421393817,1777554647000,-801.24047102,9.807e-05,2]
[421393818,1777554647000,-801.24047102,9.807e-05,2]
[421393820,1777554647000,-801.24047102,9.807e-05,2]
[421393825,1777554647000,-188079.14543727,9.808e-05,2]
[421393822,1777554647000,-801.24047098,9.807e-05,2]
[421393807,1777554647000,-801.240471,9.807e-05,2]
[421393814,1777554647000,-801.24047102,9.807e-05,2]
[421393804,1777554647000,-801.240471,9.807e-05,2]
[421393787,1777554647000,-801.240471,9.807e-05,2]
[421393800,1777554647000,-801.240471,9.807e-05,2]
[421393784,1777554647000,-801.240471,9.807e-05,2]
[421393788,1777554647000,-801.240471,9.807e-05,2]
[421393783,1777554647000,-801.240471,9.807e-05,2]
[421393785,1777554647000,-801.240471,9.807e-05,2]
[421393829,1777554647000,-480.0,0.00010676,2]
[421393786,1777554647000,-801.240471,9.807e-05,2]
[421393792,1777554647000,-801.240471,9.807e-05,2]
[421393790,1777554647000,-801.240471,9.807e-05,2]
[421393808,1777554647000,-801.240471,9.807e-05,2]
[421393791,1777554647000,-801.240471,9.807e-05,2]
[421393794,1777554647000,-801.240471,9.807e-05,2]
[421393795,1777554647000,-801.240471,9.807e-05,2]
[421393796,1777554647000,-801.240471,9.807e-05,2]
[421393797,1777554647000,-801.240471,9.807e-05,2]
[421393798,1777554647000,-801.240471,9.807e-05,2]
[421393799,1777554647000,-801.240471,9.807e-05,2]
[421393801,1777554647000,-801.240471,9.807e-05,2]
[421393802,1777554647000,-801.240471,9.807e-05,2]
[421393789,1777554647000,-801.240471,9.807e-05,2]
[421393826,1777554647000,-12445.81546273,9.808e-05,2]
[421393793,1777554647000,-801.240471,9.807e-05,2]
[421393828,1777554647000,-250.0,0.00010571,2]
[421393847,1777554647000,-166.66,0.00011507,2]
[421393854,1777554647000,-500.0,0.00011973,2]
[421393855,1777554647000,-500.0,0.00011973,2]
[421393858,1777554647000,-270.15266774,0.0001199,2]
[421393863,1777554647000,-357.64157606,0.00011999,2]
[421393859,1777554647000,-239.35647575,0.00011999,2]
[421393861,1777554647000,-502.4013798,0.00011999,2]
[421393856,1777554647000,-500.0,0.00011973,2]
[421393850,1777554647000,-5000.0,0.000119,2]
[421393860,1777554647000,-519.19670099,0.00011999,2]
[421393862,1777554647000,-500.0,0.00011999,2]
[421393864,1777554647000,-39.27918342,0.00011999,2]
[421393866,1777554647000,-1408.28638058,0.00012,2]
[421393869,1777554647000,-377.0455958,0.00012,2]
[421393865,1777554647000,-1947.72736243,0.00012,2]
[421393867,1777554647000,-45379.81953303,0.00012,2]
[421393870,1777554647000,-525.16371791,0.00012,2]
[421393830,1777554647000,-150.0,0.000108,2]
[421393857,1777554647000,-250.0,0.00011984,2]
[421393852,1777554647000,-4507.2100099,0.0001195,2]
[421393868,1777554647000,-1183.72033041,0.00012,2]
[421393853,1777554647000,-7178.2040851,0.0001195,2]
[421393846,1777554647000,-166.66,0.0001137,2]
[421393831,1777554647000,-150.0,0.000108,2]
[421393834,1777554647000,-150.0,0.000108,2]
[421393833,1777554647000,-289.50154281,0.000108,2]
[421393832,1777554647000,-150.0,0.000108,2]
[421393835,1777554647000,-150.00000001,0.000108,2]
[421393836,1777554647000,-157.56180726,0.000108,2]
[421393837,1777554647000,-222.06899998,0.000108,2]
[421393839,1777554647000,-223.94079332,0.000109,2]
[421393838,1777554647000,-150.00000001,0.000108,2]
[421393842,1777554647000,-166.66,0.00011096,2]
[421393841,1777554647000,-2000.0,0.00011022,2]
[421393843,1777554647000,-23741.61985981,0.00011099,2]
[421393849,1777554647000,-187.07043037,0.000119,2]
[421393844,1777554647000,-166.66,0.00011233,2]
[421393848,1777554647000,-166.66,0.00011644,2]
[421393851,1777554647000,-513.2410938,0.000119,2]
[421393845,1777554647000,-5000.01,0.00011326,2]
[421393840,1777554647000,-166.66,0.00010959,2]
[421393871,1777554740000,553.28,0.00030137,120]
[421393872,1777555410000,500.0,0.0003013,120]
[421393889,1777555831000,-1004.44627968,9.406e-05,2]
[421393891,1777555831000,-1200.0,9.406e-05,2]
[421393890,1777555831000,-150.55372032,9.406e-05,2]
[421393892,1777555831000,-300.0,9.406e-05,2]
[421393894,1777555831000,-17099.44627968,9.407e-05,2]
[421393893,1777555831000,-300.0,9.406e-05,2]
[421393895,1777555832000,-440.1015256,9.407e-05,2]
[421393910,1777555832000,-427.7070206,9.407e-05,2]
[421393912,1777555832000,-1243.58998721,9.407e-05,2]
[421393905,1777555832000,-609.8984744,9.407e-05,2]
[421393908,1777555832000,-1519.9,9.407e-05,2]
[421393901,1777555832000,-410.55372032,9.407e-05,2]
[421393914,1777555832000,-8512.69148616,9.407e-05,2]
[421393916,1777555832000,-299.61839068,9.407e-05,2]
[421393917,1777555832000,-17808.66890104,9.408e-05,2]
[421393920,1777555832000,-317.93913343,9.408e-05,2]
[421393903,1777555832000,-8222.14082767,9.407e-05,2]
[421393934,1777555837000,-500.0,9.507e-05,2]
[421393924,1777555837000,-62763.46336553,9.408e-05,2]
[421393926,1777555837000,-500.0,9.507e-05,2]
[421393931,1777555837000,-500.0,9.507e-05,2]
[421393927,1777555837000,-500.0,9.507e-05,2]
[421393929,1777555837000,-500.0,9.507e-05,2]
[421393930,1777555837000,-500.0,9.507e-05,2]
[421393925,1777555837000,-2500.0,9.408e-05,2]
[421393932,1777555837000,-500.0,9.507e-05,2]
[421393933,1777555837000,-500.0,9.507e-05,2]
[421393928,1777555837000,-500.0,9.507e-05,2]
[421393935,1777555837000,-500.0,9.507e-05,2]
[421393944,1777555837000,-500.0,9.507e-05,2]
[421393945,1777555837000,-500.0,9.507e-05,2]
[421393943,1777555837000,-500.0,9.507e-05,2]
[421393940,1777555837000,-500.0,9.507e-05,2]
[421393937,1777555837000,-500.0,9.507e-05,2]
[421393941,1777555837000,-500.0,9.507e-05,2]
[421393942,1777555837000,-500.0,9.507e-05,2]
[421393938,1777555837000,-500.0,9.507e-05,2]
[421393936,1777555837000,-500.0,9.507e-05,2]
[421393939,1777555837000,-500.0,9.507e-05,2]
[421393950,1777555838000,-287.60256003,9.507e-05,2]
[421393948,1777555838000,-263.46336561,9.507e-05,2]
[421393947,1777555838000,-236.53663439,9.507e-05,2]
[421393949,1777555838000,-117.06595604,9.507e-05,2]
[421393946,1777555838000,-500.0,9.507e-05,2]
[421393996,1777555839000,-2038.3362421,9.308e-05,2]
[421394012,1777555840000,-25.86537181,9.507e-05,2]
[421394007,1777555840000,-506.75426659,9.507e-05,2]
[421394004,1777555840000,-500.0,9.507e-05,2]
[421394006,1777555840000,-500.0,9.507e-05,2]
[421394008,1777555840000,-500.0,9.507e-05,2]
[421394000,1777555840000,-95.33148393,9.507e-05,2]
[421394002,1777555840000,-500.0,9.507e-05,2]
[421393999,1777555840000,-24400.07937794,9.308e-05,2]
[421394001,1777555840000,-500.0,9.507e-05,2]
[421393998,1777555840000,-580.80823926,9.308e-05,2]
[421393997,1777555840000,-522.9232407,9.308e-05,2]
[421394003,1777555840000,-500.0,9.507e-05,2]
[421394020,1777555840000,-500.0,9.507e-05,2]
[421394005,1777555840000,-500.0,9.507e-05,2]
[421394015,1777555840000,-500.0,9.507e-05,2]
[421394010,1777555840000,-35.52099804,9.507e-05,2]
[421394023,1777555840000,-447.30321909,9.507e-05,2]
[421394024,1777555840000,-52.69678091,9.507e-05,2]
[421394025,1777555840000,-249.22519068,9.507e-05,2]
[421394022,1777555840000,-500.0,9.507e-05,2]
[421394021,1777555840000,-500.0,9.507e-05,2]
[421394011,1777555840000,-474.13462819,9.507e-05,2]
[421394019,1777555840000,-500.0,9.507e-05,2]
[421394018,1777555840000,-500.0,9.507e-05,2]
[421394009,1777555840000,-464.47900196,9.507e-05,2]
[421394016,1777555840000,-500.0,9.507e-05,2]
[421394013,1777555840000,-500.0,9.507e-05,2]
[421394017,1777555840000,-500.0,9.507e-05,2]
[421394014,1777555840000,-500.0,9.507e-05,2]
[421394056,1777555842000,-132.77045748,9.507e-05,2]
[421394058,1777555843000,-450.67542666,9.507e-05,2]
[421394059,1777555843000,-191.3202215,9.507e-05,2]
[421394063,1777555843000,-161.62952544,9.507e-05,2]
[421394062,1777555843000,-43.18746249,9.507e-05,2]
[421394061,1777555843000,-126.91360258,9.507e-05,2]
[421394060,1777555843000,-308.6797785,9.507e-05,2]
[421394064,1777555843000,-216.31,9.507e-05,2]
[421394065,1777555843000,-9159.8499532,9.508e-05,2]
[421394068,1777555843000,-418.08835741,9.508e-05,2]
[421394066,1777555843000,-5703.59752062,9.508e-05,2]
[421394070,1777555843000,-1733.59562206,9.508e-05,2]
[421394069,1777555843000,-38531.25709908,9.508e-05,2]
[421394057,1777555843000,-118.00435184,9.507e-05,2]
[421394067,1777555843000,-3776.1636923,9.508e-05,2]
[421394073,1777555845000,500.0,0.0003013,120]
[421394075,1777555846000,-26066.83942437,9.508e-05,2]
[421394081,1777555930000,-240.0,9.507e-05,2]
[421394083,1777555946000,-589.50437953,9.308e-05,2]
[421394082,1777555946000,-10000.01,9.308e-05,2]
[421394084,1777555948000,-301.22035679,9.308e-05,2]
[421394086,1777556294000,500.0,0.0003013,120]
[421394088,1777556529000,7892.0,0.00030137,120]
[421394090,1777556743000,500.0,0.0003013,120]
[421394091,1777556802000,2738.64,0.0003,120]
[421394092,1777556811000,12262.76,0.0003,120]
[421394096,1777556948000,-300.0,9.297e-05,2]
[421394097,1777556948000,-4451.36055493,9.298e-05,2]
[421394095,1777556948000,-500.0,9.297e-05,2]
[421394093,1777556948000,-270.0,9.297e-05,2]
[421394094,1777556948000,-185.15504307,9.297e-05,2]
[421394105,1777557031000,-270.0,9.298e-05,2]
[421394104,1777557031000,-2269.05944507,9.298e-05,2]
[421394109,1777557031000,-335.31456548,9.308e-05,2]
[421394106,1777557031000,-300.0,9.306e-05,2]
[421394107,1777557031000,-1200.0,9.307e-05,2]
[421394110,1777557031000,-1299.03109547,9.308e-05,2]
[421394112,1777557031000,-5599.60610807,9.308e-05,2]
[421394111,1777557031000,-259.37939,9.308e-05,2]
[421394108,1777557031000,-398.94732816,9.308e-05,2]
[421394119,1777557032000,-33268.00418256,9.308e-05,2]
[421394120,1777557032000,-1230.22,9.308e-05,2]
[421394117,1777557032000,-2599.59754734,9.308e-05,2]
[421394118,1777557032000,-4776.63590534,9.308e-05,2]
[421394116,1777557032000,-500.0,9.308e-05,2]
[421394115,1777557032000,-22965.9044707,9.308e-05,2]
[421394113,1777557032000,-2468.05833915,9.308e-05,2]
[421394114,1777557032000,-390.37271931,9.308e-05,2]
[421394130,1777557037000,-8539.3814926,9.208e-05,2]
[421394131,1777557038000,-300.72668511,9.208e-05,2]
[421394132,1777557038000,-23113.49406428,9.208e-05,2]
[421394134,1777557038000,-996.93,9.208e-05,2]
[421394135,1777557038000,-380.52932165,9.208e-05,2]
[421394133,1777557038000,-316.75879128,9.208e-05,2]
[421394136,1777557038000,-637.55172502,9.208e-05,2]
[421394387,1777557040000,-7314.64809695,9.208e-05,2]
[421394384,1777557040000,-943.78799,9.208e-05,2]
[421394687,1777557043000,-282.36355332,9.208e-05,2]
[421394695,1777557043000,-14975.16205825,9.208e-05,2]
[421394661,1777557043000,-433.60142873,9.208e-05,2]
[421394658,1777557043000,-753.63763581,9.208e-05,2]
[421395001,1777557046000,-489.43218081,9.208e-05,2]
[421395032,1777557046000,-362.49191481,9.208e-05,2]
[421395043,1777557046000,-250.0,9.208e-05,2]
[421395040,1777557046000,-37949.44914728,9.208e-05,2]
[421395066,1777557046000,-478.01135625,9.208e-05,2]
[421395068,1777557046000,-899.5,9.208e-05,2]
[421395075,1777557046000,-5025.44274429,9.208e-05,2]
[421395050,1777557046000,-5164.7201628,9.208e-05,2]
[421395206,1777557175000,500.0,0.0003013,120]
[421395208,1777557224000,155.0,0.0003013,120]